bitfinex/quotes_ETHUSD_20241001
["timestamp","ask_amount","ask_price","bid_price","bid_amount"]
[1727807773500,3.98236,2511.1,2510.5,6.98317]
[1727807774224,7.96476,2511.1,2510.5,3.98316]
[1727807774425,4.73885,2511.5,2510.8,3.9827]
[1727807774426,3.98192,2511.4,2510.8,3.9827]
[1727807774586,4.73887,2511.5,2510.9,3.98254]
[1727807774788,4.73887,2511.5,2511.0,0.07964034]
[1727807774789,0.7571,2511.5,2511.0,0.07964034]
[1727807774988,0.7571,2511.5,2511.1,3.98231]
[1727807775293,0.7571,2511.5,2511.0,4.06198034]
[1727807775294,3.98143,2511.7,2511.0,4.06198034]
[1727807775499,0.8117,2511.8,2510.9,4.33007231]
[1727807775500,3.982,2511.3,2510.9,4.33007231]
[1727807775687,3.98236,2511.1,2510.7,3.0]
[1727807775894,4.76156,2511.1,2510.6,3.9831]
[1727807776092,4.76156,2511.1,2510.5,0.7812]
[1727807776293,0.7792,2511.1,2510.6,3.98308]
[1727807776530,3.98209,2511.3,2510.8,3.98272]
[1727807776835,4.78367,2511.4,2510.8,3.98276]
[1727807777136,4.78367,2511.4,2510.6,3.0]
[1727807777137,3.98228,2511.2,2510.6,3.0]
[1727807777339,5.262137,2511.4,2510.8,3.98277]
[1727807777626,3.98141,2511.7,2510.9,3.98252]
[1727807777627,0.8018,2511.7,2510.9,3.98252]
[1727807777789,0.8018,2511.7,2511.1,3.98223]
[1727807777790,4.78326,2511.7,2511.1,3.98223]
[1727807778319,8.76473,2511.7,2511.1,3.98223]
[1727807778543,8.76473,2511.7,2511.2,3.98203]
[1727807778544,4.78326,2511.7,2511.2,3.98203]
[1727807779032,3.98162,2511.6,2511.1,3.98222]
[1727807779193,4.78325,2511.7,2511.1,3.98221]
[1727807779538,0.8018,2511.7,2511.1,4.380431]
[1727807779717,4.80721,2512.0,2511.5,3.98167]
[1727807779950,0.8263,2512.0,2511.6,3.98143]
[1727807780163,3.98049,2512.3,2511.6,3.98143]
[1727807780164,7.96098,2512.3,2511.8,3.98118]
[1727807780324,0.8263,2512.4,2511.9,3.0]
[1727807780520,4.73005,2512.7,2512.0,5.66555942]
[1727807780745,4.73005,2512.7,2512.1,3.0]
[1727807780746,0.7502,2512.7,2512.1,3.0]
[1727807780960,0.7502,2512.7,2512.3,3.98038]
[1727807781264,4.72998,2512.7,2512.2,3.98057]
[1727807781620,0.7502,2512.7,2512.2,3.98057]
[1727807781826,0.8098,2513.0,2512.4,3.98024]
[1727807782062,0.8098,2513.0,2512.5,3.98009]
[1727807782063,4.78911,2513.0,2512.5,3.98009]
[1727807782274,4.78911,2513.0,2512.3,3.0]
[1727807782275,0.8098,2513.0,2512.3,3.0]
[1727807782558,3.97975,2512.8,2512.3,6.98033]
[1727807782924,3.97947,2512.9,2512.4,3.98024]
[1727807783122,0.04506184,2512.7,2512.4,3.98024]
[1727807783433,0.8098,2513.0,2512.6,3.97991]
[1727807783625,0.04502401,2512.6,2512.4,3.98015]
[1727807783827,3.97973,2512.8,2512.3,3.98041]
[1727807784065,3.97949,2512.9,2512.3,3.98041]
[1727807784066,0.04502668,2512.5,2512.3,3.98041]
[1727807784237,3.97949,2512.9,2512.2,3.98048]
[1727807784441,3.97949,2512.9,2512.4,3.98015]
[1727807784659,4.9440143,2512.9,2512.4,3.98015]
[1727807784863,3.9797,2512.8,2512.2,3.98047]
[1727807785171,0.9645243,2512.9,2512.4,3.9801]
[1727807785460,4.78921,2513.0,2512.5,3.98001]
[1727807785670,0.8098,2513.0,2512.6,3.97985]
[1727807785960,3.97908,2513.2,2512.7,4.03296536]
[1727807786270,18.89295172,2513.6,2512.5,3.98]
[1727807786271,3.97938,2513.0,2512.5,3.98]
[1727807786473,3.97973,2512.8,2512.3,3.9804]
[1727807786632,3.97973,2512.8,2512.2,3.0]
[1727807786829,3.97973,2512.8,2512.3,7.96063]
[1727807787167,3.97973,2512.8,2512.3,3.98031]
[1727807787323,4.77564,2512.8,2512.3,3.98031]
[1727807787528,0.7888,2512.7,2512.0,3.8182]
[1727807787729,4.76858,2512.7,2512.2,3.98053]
[1727807788169,4.76858,2512.7,2512.0,3.0]
[1727807788170,3.97996,2512.6,2512.0,6.98088]
[1727807788339,3.97996,2512.6,2512.1,3.9807]
[1727807788670,0.7888,2512.7,2512.2,3.98045]
[1727807788840,3.97936,2513.0,2512.5,3.97999]
[1727807789043,0.7888,2513.1,2512.5,3.97999]
[1727807789247,0.7888,2513.1,2512.5,3.97998]
[1727807789248,4.76803,2513.1,2512.5,3.97998]
[1727807789455,3.97965,2512.8,2512.3,6.9803]
[1727807789764,0.795912,2512.8,2512.5,3.97999]
[1727807789933,3.97945,2513.0,2512.5,3.97999]
[1727807790128,0.7888,2513.1,2512.2,3.98047]
[1727807790496,3.97972,2512.8,2512.3,6.98036]
[1727807790764,4.79625,2513.0,2512.4,3.98023]
[1727807790765,3.97948,2512.9,2512.4,3.98023]
[1727807790979,4.7962,2513.0,2512.4,3.98023]
[1727807791129,0.7888,2513.1,2512.6,3.97984]
[1727807791330,4.76803,2513.1,2512.6,3.97984]
[1727807792279,3.97932,2513.0,2512.6,3.97984]
[1727807792429,7.95905,2512.9,2512.4,3.98025]
[1727807792747,4.854335,2512.9,2512.3,6.98039]
[1727807792951,3.97962,2512.8,2512.3,6.98039]
[1727807793568,3.97962,2512.8,2512.3,6.98034]
[1727807793760,0.7888,2513.1,2512.6,3.97979]
[1727807793972,0.7888,2513.1,2512.7,4.05927532]
[1727807794269,3.97893,2513.3,2512.8,3.9795]
[1727807794481,3.97916,2513.1,2512.7,3.97977]
[1727807794768,3.97943,2513.0,2512.5,7.77228]
[1727807794980,3.97947,2512.9,2512.5,3.97998]
[1727807795270,7.95876,2513.0,2512.5,3.97998]
[1727807795434,3.9793,2513.0,2512.5,3.97998]
[1727807795775,3.9793,2513.0,2512.6,3.97993]
[1727807796069,3.97951,2512.9,2512.5,3.97998]
[1727807796773,3.97929,2513.1,2512.6,3.97985]
[1727807796971,3.97929,2513.1,2512.5,3.97998]
[1727807796972,3.97947,2512.9,2512.5,3.97998]
[1727807797175,4.58502737,2513.1,2512.6,3.97993]
[1727807797475,3.97931,2513.0,2512.6,3.97993]
[1727807797631,0.7915,2512.9,2512.6,3.97993]
[1727807798072,0.04394782,2512.8,2512.6,3.97993]
[1727807798473,0.04394782,2512.8,2512.5,3.98008]
[1727807798636,0.04394782,2512.8,2512.2,3.7575]
[1727807798840,4.58498737,2513.1,2512.2,7.73805]
[1727807799171,14.91451172,2513.3,2512.9,3.97935]
[1727807799484,14.91451172,2513.3,2512.3,0.773805]
[1727807799485,3.97939,2513.0,2512.4,3.0]
[1727807799637,3.97939,2513.0,2512.3,0.773805]
[1727807799638,3.97949,2512.9,2512.5,3.98002]
[1727807799832,4.377329,2513.0,2512.5,3.98002]
[1727807799833,0.397939,2513.0,2512.5,3.98002]
[1727807800182,3.97946,2512.9,2512.5,3.98007]
[1727807800383,3.97965,2512.8,2512.4,3.98023]
[1727807800669,0.806,2512.9,2512.4,3.98015]
[1727807800870,0.806,2512.9,2512.6,3.97993]
[1727807801032,0.806,2512.9,2512.4,3.98015]
[1727807801236,3.9797,2512.8,2512.4,3.0]
[1727807801588,3.97979,2512.7,2512.3,3.9803]
[1727807801740,0.9163119,2512.8,2512.5,3.98002]
[1727807801935,4.78558,2512.9,2512.5,3.98002]
[1727807802138,5.40614704,2516.4,2512.7,3.97976]
[1727807802139,0.8302,2513.2,2512.7,3.97976]
[1727807802376,4.8092,2513.2,2512.8,3.97955]
[1727807802578,0.8302,2513.2,2512.4,0.7745]
[1727807802748,0.8302,2513.2,2512.7,3.97976]
[1727807802749,3.97915,2513.1,2512.7,3.97976]
[1727807802949,0.8302,2513.2,2512.7,3.97976]
[1727807803203,18.89345172,2513.3,2512.9,3.97945]
[1727807803545,0.8302,2513.4,2512.9,3.97937]
[1727807803792,0.8302,2513.4,2513.0,0.07957985]
[1727807804090,4.80846,2513.7,2513.2,3.9789]
[1727807804301,0.8302,2513.7,2513.3,3.97879]
[1727807804446,3.97783,2514.0,2513.3,3.97879]
[1727807804447,3.97788,2513.9,2513.5,3.97843]
[1727807804652,4.75093,2514.0,2513.6,0.07950574]
[1727807804844,8.72876,2514.0,2513.5,4.05802573]
[1727807805090,4.75093,2514.0,2513.5,4.05802573]
[1727807805255,3.97765,2514.1,2513.6,3.97831]
[1727807805448,3.97765,2514.1,2513.6,7.95658]
[1727807805661,3.97758,2514.1,2513.7,3.97817]
[1727807805892,3.97758,2514.1,2513.5,4.80952]
[1727807806183,0.7732,2514.3,2513.6,3.97823]
[1727807806391,2.34197117,2514.3,2513.6,3.97823]
[1727807806564,3.97756,2514.1,2513.6,7.95649]
[1727807806762,3.97756,2514.1,2513.6,3.97823]
[1727807807090,4.75059,2514.3,2513.7,3.97811]
[1727807807304,4.75059,2514.3,2513.5,0.8311]
[1727807807305,0.7732,2514.3,2513.9,3.97784]
[1727807807452,14.91451172,2514.5,2513.5,4.80959]
[1727807807453,18.89152172,2514.5,2514.0,4.05714324]
[1727807807652,21.25687389,2514.5,2514.0,4.05714324]
[1727807807853,0.7851,2514.6,2514.2,3.97739]
[1727807808154,18.89107172,2514.8,2514.3,0.04580784]
[1727807808155,3.97669,2514.7,2514.3,0.04580784]
[1727807808353,7.95312,2514.8,2514.3,0.04580784]
[1727807808675,7.95312,2514.8,2514.3,0.07953462]
[1727807808676,3.97669,2514.7,2514.3,0.07953462]
[1727807808990,3.97687,2514.6,2514.0,4.79371]
[1727807809364,0.7851,2514.9,2514.0,4.79371]
[1727807809365,0.7851,2514.9,2514.0,6.48165942]
[1727807809577,4.76142,2514.9,2514.3,3.97717]
[1727807809788,4.76142,2514.9,2514.0,13.45932942]
[1727807809789,3.15031617,2514.9,2514.2,3.9773]
[1727807810182,3.97671,2514.7,2514.2,3.9773]
[1727807810752,3.15031617,2514.9,2514.4,3.97708]
[1727807811153,18.89076172,2515.0,2514.5,3.97691]
[1727807811154,14.91451172,2515.0,2514.5,3.97691]
[1727807811359,18.89066172,2515.0,2514.5,3.97691]
[1727807811577,18.89066172,2515.0,2514.5,7.95376]
[1727807811791,14.91451172,2515.0,2514.6,3.97674]
[1727807812570,3.97601,2515.1,2514.6,3.97674]
[1727807812762,7.95242,2515.0,2514.5,3.97685]
[1727807813093,7.95242,2515.0,2514.5,6.97691]
[1727807813094,0.03628725,2514.9,2514.5,6.97691]
[1727807813295,0.03628725,2514.9,2514.3,3.97713]
[1727807813296,4.01270725,2514.9,2514.3,6.97717]
[1727807813803,0.03628725,2514.9,2514.5,3.97683]
[1727807814001,3.97653,2514.8,2514.3,6.97713]
[1727807814368,0.03663745,2514.7,2514.3,6.97713]
[1727807814896,0.03657418,2514.6,2514.3,3.0]
[1727807815194,0.47408,2515.1,2514.5,3.0]
[1727807815398,0.47408,2515.1,2514.3,6.97723]
[1727807815399,3.97654,2514.8,2514.3,6.97723]
[1727807815558,3.97624,2515.0,2514.4,3.97705]
[1727807815762,3.97624,2515.0,2514.5,3.97683]
[1727807816166,3.97638,2514.9,2514.4,3.977]
[1727807816377,0.47408,2515.1,2514.5,6.97677]
[1727807816378,4.45015,2515.1,2514.5,6.97677]
[1727807816617,3.97615,2515.0,2514.4,6.97694]
[1727807816755,3.97599,2515.1,2514.4,0.697694]
[1727807816962,4.74084,2515.2,2514.6,3.97664]
[1727807817195,3.97605,2515.1,2514.6,3.97664]
[1727807817408,4.74084,2515.2,2514.7,3.97653]
[1727807817907,4.74084,2515.2,2514.6,3.97664]
[1727807817908,3.97605,2515.1,2514.6,3.97664]
[1727807818208,3.97605,2515.1,2514.6,7.9533]
[1727807818569,3.97637,2514.9,2514.4,4.674694]
[1727807818770,0.871688,2515.1,2514.3,3.97721]
[1727807818771,3.97623,2515.0,2514.3,3.97714]
[1727807818990,3.97642,2514.9,2514.4,3.97709]
[1727807819379,3.97623,2515.0,2514.5,3.97692]
[1727807819582,3.97625,2515.0,2514.3,3.97723]
[1727807819824,3.9765,2514.8,2514.3,3.97715]
[1727807820025,3.97669,2514.7,2514.2,4.76563]
[1727807820217,3.97669,2514.7,2514.2,4.76569]
[1727807820374,3.9771,2514.4,2514.0,3.97761]
[1727807820712,3.97696,2514.5,2514.0,3.97764]
[1727807820917,14.91451172,2514.8,2514.4,3.97701]
[1727807821162,0.8206,2515.0,2514.6,3.9767]
[1727807821329,3.0,2515.6,2515.0,3.97612]
[1727807821330,0.8206,2515.3,2515.0,3.97612]
[1727807821618,1.30022,2515.3,2514.8,3.97636]
[1727807821783,1.30022,2515.3,2514.8,3.97645]
[1727807821984,3.97608,2515.1,2514.6,3.97667]
[1727807822202,3.97584,2515.2,2514.7,3.9765]
[1727807822510,0.7918,2515.6,2514.6,3.0]
[1727807822813,3.97489,2515.8,2515.3,3.97551]
[1727807822974,4.769858,2515.8,2515.4,4.05498186]
[1727807823172,0.7553,2515.9,2515.5,3.97534]
[1727807823371,18.88851172,2516.4,2515.0,3.0]
[1727807823372,0.7691,2515.6,2515.0,3.0]
[1727807823577,0.7691,2515.6,2515.0,6.97603]
[1727807824013,0.03704354,2515.5,2515.2,3.9758]
[1727807824185,4.74432,2515.6,2515.2,3.9758]
[1727807824387,4.01313163,2515.4,2514.9,3.0]
[1727807824595,1.64102,2515.6,2515.0,3.97613]
[1727807824790,1.64102,2515.6,2514.2,3.97733]
[1727807824791,3.97634,2514.9,2514.2,3.97733]
[1727807825009,3.97634,2514.9,2514.3,3.97724]
[1727807825010,3.97653,2514.8,2514.3,3.97724]
[1727807825216,4.01416012,2514.8,2514.3,3.97724]
[1727807825514,4.01416012,2514.8,2514.0,3.97759]
[1727807825515,3.97699,2514.5,2514.0,3.97759]
[1727807825820,3.97699,2514.5,2513.8,4.78112]
[1727807826019,0.8490066,2514.7,2513.8,0.8032]
[1727807826020,0.0371168,2514.4,2513.8,0.8032]
[1727807826191,0.0371168,2514.4,2514.3,3.97725]
[1727807826378,18.89009172,2515.4,2514.4,3.0]
[1727807826379,4.75186,2515.3,2514.4,3.0]
[1727807826580,7.38,2515.5,2514.4,3.0]
[1727807826581,3.97545,2515.5,2514.9,3.97617]
[1727807826781,1.64802,2515.6,2514.8,3.8203]
[1727807827090,1.64802,2515.6,2514.5,0.7578]
[1727807827091,3.97648,2514.8,2514.5,0.7578]
[1727807827295,3.97679,2514.6,2514.2,3.0]
[1727807827502,3.97709,2514.4,2513.8,0.7578]
[1727807827827,3.97709,2514.4,2513.9,3.97786]
[1727807827978,3.97702,2514.5,2514.0,3.97769]
[1727807828175,0.03550754,2514.3,2513.9,3.97778]
[1727807828379,0.03781514,2514.4,2513.9,0.473558]
[1727807828611,0.03537174,2514.2,2513.8,4.73581]
[1727807828822,3.97693,2514.5,2513.8,8.71376]
[1727807828823,4.01497046,2514.3,2513.8,8.71376]
[1727807829023,3.97693,2514.5,2513.8,8.71376]
[1727807829024,0.03737029,2514.2,2513.9,3.0]
[1727807829443,3.97805,2513.8,2513.2,7.95786]
[1727807829725,3.97805,2513.8,2513.2,4.8927755]
[1727807829945,0.03517853,2513.7,2513.2,4.8927755]
[1727807830090,0.03517853,2513.7,2513.1,0.7752]
[1727807830091,3.97865,2513.5,2513.1,0.7752]
[1727807830293,0.03769145,2513.6,2513.1,0.7752]
[1727807830485,4.77953,2514.0,2513.3,3.97872]
[1727807830699,3.97788,2513.9,2513.4,3.97859]
[1727807830932,4.01580227,2513.9,2513.3,3.97872]
[1727807831228,0.03792227,2513.9,2513.3,0.475392]
[1727807831432,0.03792227,2513.9,2513.1,0.7752]
[1727807831641,3.97883,2513.3,2512.8,4.77543]
[1727807831851,3.97869,2513.4,2512.9,4.85489]
[1727807832128,3.97869,2513.4,2512.9,0.87551]
[1727807832337,4.7753,2513.5,2512.9,0.87551]
[1727807832338,3.97894,2513.3,2512.9,0.87551]
[1727807832629,3.97917,2513.1,2512.5,4.77589]
[1727807832790,3.97917,2513.1,2512.6,3.97994]
[1727807833126,3.97924,2513.1,2512.5,8.7559]
[1727807833424,3.97924,2513.1,2512.6,0.87559]
[1727807833836,3.97899,2513.2,2512.7,3.97977]
[1727807835740,0.7967,2513.5,2512.1,5.66555942]
[1727807835741,3.98001,2512.6,2512.2,0.7717]
[1727807836291,3.9806,2512.2,2511.8,1.58190279]
[1727807836493,0.8269,2512.4,2512.0,3.98081]
[1727807836643,4.8068,2512.7,2511.8,0.7799]
[1727807836978,3.9799,2512.7,2512.1,3.98059]
[1727807837138,3.9799,2512.7,2512.1,4.378649]
[1727807837344,3.9799,2512.7,2512.1,4.378769]
[1727807837543,3.9799,2512.7,2512.2,3.98057]
[1727807837942,14.91451172,2512.8,2512.2,3.98057]
[1727807838141,3.97964,2512.8,2512.3,3.0]
[1727807838348,3.97964,2512.8,2512.3,7.7182629]
[1727807838585,4.77228,2512.9,2512.3,3.7378629]
[1727807838762,3.97909,2513.2,2512.5,3.98009]
[1727807838971,3.97909,2513.2,2512.4,0.7842]
[1727807838972,3.97931,2513.0,2512.4,0.7842]
[1727807839170,4.8545,2513.0,2512.4,0.7842]
[1727807839372,3.97932,2513.0,2512.4,0.7842]
[1727807839687,3.97927,2513.1,2512.6,3.97985]
[1727807839836,3.97932,2513.0,2512.5,6.98005]
[1727807840057,3.97932,2513.0,2512.6,3.97993]
[1727807840254,0.7935,2513.2,2512.6,3.97993]
[1727807840502,4.77258,2513.2,2512.6,0.776413]
[1727807840700,3.97916,2513.1,2512.6,4.756323]
[1727807840914,3.97931,2513.0,2512.6,0.776413]
[1727807841074,3.97953,2512.9,2512.5,3.0]
[1727807841274,0.7935,2513.2,2512.5,3.0]
[1727807841275,3.97931,2513.0,2512.5,6.98002]
[1727807841586,3.97947,2512.9,2512.5,3.0]
[1727807841968,3.97928,2513.1,2512.5,6.98002]
[1727807842304,4.77249,2513.2,2512.7,3.97967]
[1727807842500,14.91451172,2513.4,2512.7,3.97967]
[1727807842501,18.89333172,2513.4,2512.7,5.875721]
[1727807842795,3.97884,2513.3,2512.7,5.875811]
[1727807843006,3.97901,2513.2,2512.7,5.875811]
[1727807843204,3.97868,2513.4,2512.9,3.97944]
[1727807843362,3.97891,2513.3,2512.9,0.5875491]
[1727807843558,3.97955,2512.9,2512.4,4.78035]
[1727807843760,0.7861,2513.4,2511.5,5.20915301]
[1727807843761,3.98006,2512.6,2512.1,0.8001]
[1727807843965,4.76547,2513.0,2511.9,3.98104]
[1727807843966,3.98023,2512.5,2511.9,3.98104]
[1727807844195,3.98033,2512.4,2511.9,3.98104]
[1727807844393,3.98033,2512.4,2511.8,4.7529]
[1727807844394,3.98052,2512.3,2511.8,8.734]
[1727807844664,3.98003,2512.6,2512.1,3.98073]
[1727807844866,0.7698,2512.7,2512.2,4.06016339]
[1727807845096,0.7698,2512.7,2512.1,3.98062]
[1727807845097,0.7698,2512.7,2512.3,4.05910146]
[1727807845298,3.97972,2512.8,2512.3,4.05910146]
[1727807845504,3.97981,2512.7,2512.3,4.05910146]
[1727807845864,3.97939,2513.0,2512.4,0.7792]
[1727807846065,3.97946,2512.9,2512.3,3.0]
[1727807846266,3.97989,2512.7,2512.3,3.0]
[1727807846480,3.97996,2512.6,2512.2,4.75969]
[1727807847279,3.97996,2512.6,2512.2,0.7792]
[1727807847509,3.97996,2512.6,2512.2,4.75976]
[1727807847813,3.97979,2512.7,2512.2,4.75976]
[1727807847975,3.97996,2512.6,2512.2,4.75976]
[1727807848176,3.98026,2512.4,2512.1,3.0]
[1727807848474,8.835648,2512.6,2512.1,3.98062]
[1727807848694,3.98018,2512.5,2512.0,7.76095]
[1727807848895,3.98018,2512.5,2512.1,3.9807]
[1727807849412,3.98018,2512.5,2511.3,3.98198]
[1727807849413,7.96173,2512.1,2511.5,3.98164]
[1727807849618,3.98085,2512.1,2511.6,3.98151]
[1727807849803,7.96169,2512.1,2511.6,3.98151]
[1727807850116,3.98059,2512.2,2511.6,5.539465]
[1727807850328,7.96129,2512.2,2511.6,5.539465]
[1727807850479,3.98059,2512.2,2511.7,3.98133]
[1727807850682,3.98075,2512.1,2511.6,5.539465]
[1727807850923,3.98075,2512.1,2511.6,9.520875]
[1727807851084,3.98073,2512.1,2511.7,3.9813]
[1727807851279,3.98059,2512.2,2511.7,4.5352135]
[1727807851485,3.98059,2512.2,2511.7,0.5539335]
[1727807851824,7.96126,2512.2,2511.7,0.5539335]
[1727807852119,0.79,2512.4,2511.7,0.5539335]
[1727807852120,3.98041,2512.3,2511.7,0.5539335]
[1727807852273,4.77033,2512.4,2511.9,3.98103]
[1727807852478,3.98119,2511.9,2511.5,3.0]
[1727807852678,3.98121,2511.8,2511.4,0.7813]
[1727807853031,3.98161,2511.6,2511.1,4.7636]
[1727807853192,3.98186,2511.4,2511.1,0.7813]
[1727807853522,0.7889,2511.9,2510.9,3.98255]
[1727807853823,3.98175,2511.5,2510.9,3.98255]
[1727807854029,3.98235,2511.1,2510.6,4.76427]
[1727807854330,3.98254,2511.0,2510.6,1.656045]
[1727807854614,3.98225,2511.2,2510.7,3.98288]
[1727807854818,15.73061172,2511.5,2510.6,4.76439]
[1727807855044,15.73061172,2511.5,2511.0,3.98238]
[1727807855045,19.71238172,2511.5,2511.0,3.98238]
[1727807855345,3.98189,2511.4,2510.9,3.98263]
[1727807855548,3.98232,2511.1,2510.6,0.7813]
[1727807855841,15.73061172,2511.5,2510.6,0.7813]
[1727807855842,19.71241172,2511.5,2510.9,3.98249]
[1727807855997,23.69419172,2511.5,2510.9,3.98249]
[1727807856340,3.98212,2511.3,2510.9,3.0]
[1727807857243,7.96392,2511.4,2510.9,3.0]
[1727807857529,22.08180089,2511.5,2511.0,3.98237]
[1727807858296,19.71238172,2511.5,2511.0,3.98237]
[1727807858767,0.8161,2511.5,2510.9,3.0]
[1727807858895,3.98223,2511.2,2510.8,3.0]
[1727807859093,3.98223,2511.2,2510.6,3.7813]
[1727807859309,3.98223,2511.2,2510.6,8.540775]
[1727807859801,3.98238,2511.1,2510.6,8.540775]
[1727807860501,4.76808,2510.7,2510.1,3.98376]
[1727807860937,4.76804,2510.7,2510.2,3.98373]
[1727807861256,0.785,2510.7,2510.1,3.98376]
[1727807861447,0.785,2510.7,2510.3,3.9835]
[1727807861623,7.96548,2510.9,2510.4,3.98334]
[1727807861624,4.73953,2510.9,2510.4,3.98334]
[1727807861841,0.7568,2510.9,2510.5,3.98324]
[1727807862132,4.77756,2511.2,2510.7,3.98293]
[1727807862513,0.7954,2511.7,2511.0,0.7993]
[1727807862754,3.9813,2511.8,2511.3,3.9819]
[1727807863040,4.77653,2511.9,2511.4,0.05320637]
[1727807863208,4.77653,2511.9,2511.3,3.98186]
[1727807863544,4.77653,2511.9,2511.4,0.05320637]
[1727807863840,4.77653,2511.9,2511.1,3.9822]
[1727807863841,5.2940093,2511.9,2511.2,3.0]
[1727807863998,5.2940093,2511.9,2511.4,3.98181]
[1727807864335,3.98127,2511.8,2511.3,3.98184]
[1727807864697,0.7785,2511.8,2510.8,3.7752]
[1727807864900,3.98256,2511.0,2510.5,4.75836]
[1727807865099,3.98256,2511.0,2510.3,3.98347]
[1727807865100,3.98278,2510.9,2510.3,4.75867]
[1727807865324,0.476106,2511.0,2510.1,0.481596]
[1727807865325,4.458596,2511.0,2510.1,0.481596]
[1727807865539,3.98295,2510.7,2510.1,3.9838]
[1727807865849,3.98295,2510.7,2510.0,4.75919]
[1727807866146,0.7785,2510.6,2510.2,3.98371]
[1727807866366,0.7785,2510.6,2510.2,3.98364]
[1727807866576,4.76171,2510.6,2510.1,3.98378]
[1727807866875,0.7785,2510.6,2510.2,3.98373]
[1727807867432,0.7785,2510.6,2510.1,3.0]
[1727807867667,0.7785,2510.6,2510.2,3.98374]
[1727807867876,0.7785,2510.6,2510.2,3.98364]
[1727807868383,0.7785,2510.6,2510.1,3.0]
[1727807868384,6.39104177,2510.9,2510.4,3.98331]
[1727807868671,6.39104177,2510.9,2510.1,3.0]
[1727807868672,0.60757478,2510.8,2510.2,3.98362]
[1727807868866,6.39104177,2510.9,2510.4,7.96668]
[1727807869038,2.40831177,2510.9,2510.4,3.98327]
[1727807869238,3.98279,2510.8,2510.4,3.98327]
[1727807869454,3.98279,2510.8,2510.2,3.98359]
[1727807869765,3.98279,2510.8,2510.3,3.98352]
[1727807869968,3.98279,2510.8,2510.4,3.98342]
[1727807870135,3.98279,2510.8,2510.3,3.98347]
[1727807870336,4.5078196,2510.8,2510.2,3.98359]
[1727807870867,0.7914,2510.9,2510.5,3.98326]
[1727807871437,19.71438172,2511.2,2510.6,3.07965929]
[1727807871637,0.8176,2511.2,2510.8,3.98269]
[1727807872052,3.98256,2511.0,2510.6,3.98299]
[1727807872246,3.98256,2511.0,2510.5,3.7584]
[1727807872247,3.98279,2510.8,2510.5,3.0]
[1727807872445,3.98279,2510.8,2510.4,3.98329]
[1727807872663,3.98286,2510.8,2510.3,3.98347]
[1727807872866,7.96537,2510.9,2510.4,3.98342]
[1727807873079,3.98266,2510.9,2510.4,3.98342]
[1727807873784,14.91451172,2511.1,2510.7,3.98283]
[1727807874000,3.982,2511.3,2510.9,3.98254]
[1727807874288,3.98223,2511.2,2510.7,3.98285]
[1727807874451,3.98223,2511.2,2510.5,0.8292]
[1727807874452,3.98263,2511.0,2510.5,4.81235]
[1727807874654,3.9827,2510.9,2510.6,3.0]
[1727807875267,3.98244,2511.1,2510.6,6.98297]
[1727807875560,3.98244,2511.1,2510.6,8.2501065]
[1727807875865,3.98244,2511.1,2510.6,4.2671365]
[1727807876065,0.8319,2511.4,2510.5,4.81237]
[1727807876066,3.98256,2511.0,2510.5,4.81237]
[1727807876366,3.98256,2511.0,2510.6,6.9831]
[1727807876958,3.98232,2511.1,2510.6,6.98299]
[1727807877291,7.96474,2511.1,2510.6,6.98299]
[1727807877464,3.98232,2511.1,2510.6,3.0]
[1727807877681,3.98211,2511.3,2510.6,0.781246]
[1727807877886,3.98218,2511.2,2510.7,3.98286]
[1727807878090,3.98271,2510.9,2510.4,3.98342]
[1727807878286,3.9831,2510.7,2510.2,3.98372]
[1727807878501,0.7616,2511.0,2510.4,3.0]
[1727807878502,3.98286,2510.8,2510.4,3.0]
[1727807878702,0.474446,2510.8,2510.1,0.821]
[1727807878905,3.98323,2510.6,2510.1,4.80489]
[1727807879109,3.98323,2510.6,2510.2,3.98372]
[1727807879275,3.98285,2510.8,2510.2,3.98372]
[1727807879475,3.98296,2510.7,2510.2,3.98364]
[1727807879676,0.7616,2511.0,2510.1,0.821]
[1727807879978,3.98303,2510.7,2510.1,4.80477]
[1727807880375,5.66555942,2510.8,2510.0,3.0]
[1727807880576,3.98359,2510.3,2510.0,3.0]
[1727807880822,8.7234,2510.4,2509.8,3.9843]
[1727807881021,3.98369,2510.3,2509.9,3.98412]
[1727807881611,4.73991,2510.4,2510.0,3.0]
[1727807881819,0.7564,2510.4,2510.0,6.98399]
[1727807882115,19.70904172,2510.7,2510.3,3.98346]
[1727807882273,19.70904172,2510.7,2510.1,3.98381]
[1727807882274,3.98315,2510.6,2510.1,3.98381]
[1727807882474,3.98335,2510.5,2510.0,7.96791]
[1727807882718,15.72601172,2510.7,2510.1,3.98389]
[1727807882903,3.98318,2510.6,2510.2,3.98374]
[1727807883111,15.72601172,2510.7,2510.4,3.98339]
[1727807883296,3.98319,2510.6,2510.1,3.98382]
[1727807883492,3.98319,2510.6,2510.1,7.96765]
[1727807883695,14.91451172,2510.7,2510.4,3.9834]
[1727807884011,4.79399,2511.0,2510.4,3.98331]
[1727807884325,4.79399,2511.0,2510.1,3.98385]
[1727807884326,3.98315,2510.6,2510.1,3.7987]
[1727807884618,3.98315,2510.6,2510.1,6.98382]
[1727807884822,3.98291,2510.8,2510.2,3.98367]
[1727807885151,20.58007114,2510.8,2509.4,0.1233662]
[1727807885311,3.98431,2509.9,2509.4,4.1082862]
[1727807885484,14.91451172,2510.7,2509.4,4.1082862]
[1727807885485,0.7958,2510.0,2509.7,3.98449]
[1727807885684,4.77939,2510.3,2509.8,0.07968022]